fUST/lending_fUST_20250914
["ID","MTS","AMOUNT","RATE_DAILY","PERIOD"]
[385434460,1757847046039,-480.0,0.00021917,2]
[385434461,1757847046048,-480.0,0.00021917,2]
[385434462,1757847046058,-480.0,0.00021917,2]
[385434463,1757847046068,-480.0,0.00021917,2]
[385434464,1757847046077,-1617.82,0.00021917,2]
[385434466,1757847046086,-480.0,0.00021917,2]
[385434468,1757847046096,-480.0,0.00021917,2]
[385434470,1757847046108,-1161.98,0.00021917,2]
[385434472,1757847046117,-480.0,0.00021917,2]
[385434474,1757847046126,-480.0,0.00021917,2]
[385434475,1757847046134,-480.94301996,0.00021917,2]
[385434476,1757847046143,-480.0,0.00021917,2]
[385434477,1757847046152,-658.87,0.00021917,2]
[385434478,1757847046161,-151.0,0.00021917,2]
[385434479,1757847046170,-501.76,0.00021917,2]
[385434480,1757847046180,-151.0,0.00021917,2]
[385434481,1757847046190,-480.0,0.00021917,2]
[385434482,1757847046199,-298.834572,0.00021917,2]
[385434483,1757847046209,-1230.62,0.00021917,2]
[385434484,1757847046219,-480.0,0.00021917,2]
[385434485,1757847046228,-486.25437665,0.00021917,2]
[385434486,1757847046238,-171.398839,0.00021917,2]
[385434487,1757847046248,-1146.22,0.00021917,2]
[385434488,1757847046273,-480.0,0.00021917,2]
[385434489,1757847046282,-480.0,0.00021917,2]
[385434490,1757847046291,-951.0,0.00021917,2]
[385434491,1757847046300,-480.0,0.00021917,2]
[385434492,1757847046309,-480.0,0.00021917,2]
[385434493,1757847046318,-1944.11,0.00021917,2]
[385434494,1757847046327,-480.0,0.00021917,2]
[385434495,1757847046337,-480.0,0.00021917,2]
[385434496,1757847046346,-3042.51,0.00021917,2]
[385434497,1757847046355,-5014.25,0.00021917,2]
[385434498,1757847046364,-480.0,0.00021917,2]
[385434499,1757847046373,-480.0,0.00021917,2]
[385434500,1757847046382,-15124.66,0.00021917,2]
[385434501,1757847046392,-480.0,0.00021917,2]
[385434502,1757847046401,-876.13,0.00021917,2]
[385434503,1757847046410,-480.0,0.00021917,2]
[385434504,1757847046418,-483.0,0.00021917,2]
[385434505,1757847046427,-168.0,0.00021936,2]
[385434506,1757847046436,-411.06922566,0.00021973,2]
[385434507,1757847046445,-500.0,0.00021973,2]
[385434508,1757847046455,-500.0,0.00021973,2]
[385434509,1757847046465,-500.56072769,0.00021973,2]
[385434510,1757847046474,-402.78639252,0.00021973,2]
[385434511,1757847046483,-400.41690973,0.00021973,2]
[385434512,1757847046493,-500.0,0.00021973,2]
[385434513,1757847046502,-500.0,0.00021973,2]
[385434514,1757847046512,-500.0,0.00021973,2]
[385434515,1757847046521,-500.0,0.00021973,2]
[385434516,1757847046531,-500.0,0.00021973,2]
[385434517,1757847046540,-500.0,0.00021973,2]
[385434518,1757847046549,-500.0,0.00021973,2]
[385434519,1757847046558,-800.31,0.00022,7]
[385434520,1757847046568,-151.0,0.00022,9]
[385434521,1757847046577,-1002.66,0.00022,7]
[385434522,1757847046586,-151.0,0.00022,4]
[385434523,1757847046595,-254.69,0.00022,2]
[385434524,1757847046604,-818.0,0.00022006,2]
[385434525,1757847046613,-9051.21835851,0.00022007,2]
[385434526,1757847046622,-235.0,0.00022035,2]
[385434527,1757847046631,-176.24354705,0.00022091,2]
[385434528,1757847046641,-188.5479816,0.00022095,2]
[385434529,1757847046650,-188.5479816,0.00022095,2]
[385434530,1757847046659,-151.0,0.000221,5]
[385434531,1757847046668,-151.0,0.000221,5]
[385434532,1757847046677,-151.0,0.000221,9]
[385434533,1757847046686,-480.0,0.00022191,3]
[385434534,1757847046695,-480.0,0.00022191,3]
[385434535,1757847046704,-480.0,0.00022191,3]
[385434536,1757847046713,-480.0,0.00022191,3]
[385434537,1757847046722,-480.0,0.00022191,3]
[385434538,1757847046731,-480.0,0.00022191,3]
[385434539,1757847046741,-480.0,0.00022191,3]
[385434540,1757847046750,-764.7,0.00022191,3]
[385434541,1757847046759,-480.0,0.00022191,3]
[385434542,1757847046768,-480.0,0.00022191,3]
[385434543,1757847046776,-480.0,0.00022191,3]
[385434544,1757847046787,-480.0,0.00022191,3]
[385434545,1757847046914,-480.0,0.00022191,2]
[385434546,1757847046924,-617.84981511,0.00022191,3]
[385434547,1757847046933,-480.0,0.00022191,3]
[385434548,1757847046942,-480.0,0.00022191,3]
[385434549,1757847046951,-480.0,0.00022191,3]
[385434550,1757847046960,-500.89758025,0.00022191,3]
[385434551,1757847046969,-480.0,0.00022191,3]
[385434552,1757847046978,-480.0,0.00022191,3]
[385434553,1757847046987,-480.0,0.00022191,3]
[385434554,1757847046997,-480.0,0.00022191,3]
[385434555,1757847047007,-480.0,0.00022191,3]
[385434556,1757847047017,-1033.32,0.00022191,3]
[385434557,1757847047031,-185.00889537,0.00022191,3]
[385434558,1757847047040,-270.46886895,0.00022191,3]
[385434559,1757847047050,-480.0,0.00022191,3]
[385434560,1757847047060,-899.31,0.00022191,3]
[385434561,1757847047069,-480.0,0.00022191,3]
[385434562,1757847047078,-480.0,0.00022191,3]
[385434563,1757847047087,-480.0,0.00022191,3]
[385434564,1757847047096,-561.54,0.00022191,3]
[385434565,1757847047105,-480.0,0.00022191,3]
[385434566,1757847047114,-1000.0,0.00022191,3]
[385434567,1757847047123,-1056.66,0.00022191,3]
[385434568,1757847047133,-480.0,0.00022191,3]
[385434569,1757847047141,-480.0,0.00022191,3]
[385434570,1757847047152,-480.0,0.00022191,3]
[385434571,1757847047161,-480.0,0.00022191,3]
[385434572,1757847047170,-480.0,0.00022191,3]
[385434573,1757847047179,-480.0,0.00022191,3]
[385434574,1757847047188,-480.0,0.00022191,3]
[385434575,1757847047197,-480.0,0.00022191,3]
[385434576,1757847047206,-480.0,0.00022191,3]
[385434577,1757847047215,-480.0,0.00022191,2]
[385434578,1757847047224,-643.08,0.00022191,3]
[385434579,1757847047234,-480.0,0.00022191,3]
[385434580,1757847047242,-480.0,0.00022191,3]
[385434581,1757847047252,-480.0,0.00022191,3]
[385434582,1757847047260,-458.08336739,0.00022191,3]
[385434583,1757847047269,-480.0,0.00022191,3]
[385434584,1757847047279,-480.0,0.00022191,3]
[385434585,1757847047287,-480.0,0.00022191,3]
[385434586,1757847047297,-480.0,0.00022191,3]
[385434587,1757847047306,-480.0,0.00022191,3]
[385434588,1757847047315,-510.71,0.00022191,3]
[385434589,1757847047324,-480.0,0.00022191,3]
[385434590,1757847047333,-480.0,0.00022191,3]
[385434591,1757847047342,-819.88,0.00022191,3]
[385434592,1757847047351,-480.0,0.00022191,3]
[385434593,1757847047360,-480.0,0.00022191,3]
[385434594,1757847047370,-480.0,0.00022191,3]
[385434595,1757847047379,-480.0,0.00022191,3]
[385434596,1757847047388,-480.0,0.00022191,3]
[385434597,1757847047398,-481.62003569,0.00022191,3]
[385434598,1757847047408,-480.0,0.00022191,3]
[385434599,1757847047417,-1013.94,0.00022191,3]
[385434600,1757847047426,-480.0,0.00022191,3]
[385434601,1757847047435,-480.0,0.00022191,3]
[385434602,1757847047444,-857.5,0.00022191,3]
[385434603,1757847047453,-480.0,0.00022191,3]
[385434604,1757847047463,-480.0,0.00022191,3]
[385434605,1757847047472,-484.13133767,0.00022191,3]
[385434606,1757847047481,-480.0,0.00022191,3]
[385434607,1757847047490,-480.0,0.00022191,3]
[385434608,1757847047500,-1132.55,0.00022191,3]
[385434609,1757847047510,-480.0,0.00022191,3]
[385434610,1757847047519,-480.0,0.00022191,3]
[385434611,1757847047527,-480.0,0.00022191,3]
[385434612,1757847047537,-480.0,0.00022191,3]
[385434613,1757847047546,-480.0,0.00022191,3]
[385434614,1757847047555,-488.80557099,0.00022191,3]
[385434615,1757847047564,-480.0,0.00022191,3]
[385434616,1757847047573,-1152.28,0.00022191,3]
[385434617,1757847047582,-509.5,0.00022191,3]
[385434618,1757847047591,-480.0,0.00022191,3]
[385434619,1757847047600,-480.0,0.00022191,3]
[385434620,1757847047609,-1189.25,0.00022191,3]
[385434621,1757847047618,-500.0,0.00022191,3]
[385434622,1757847047627,-494.76533007,0.00022191,3]
[385434623,1757847047635,-480.0,0.00022191,3]
[385434624,1757847047644,-914.96,0.00022191,3]
[385434625,1757847047653,-480.0,0.00022191,3]
[385434626,1757847047662,-480.0,0.00022191,3]
[385434627,1757847047672,-520.06612952,0.00022191,3]
[385434628,1757847047681,-480.0,0.00022191,3]
[385434629,1757847047689,-2411.26,0.00022191,3]
[385434630,1757847047698,-480.0,0.00022191,3]
[385434631,1757847047707,-490.46469285,0.00022191,3]
[385434632,1757847047717,-480.0,0.00022191,3]
[385434633,1757847047726,-480.0,0.00022191,3]
[385434634,1757847047735,-480.0,0.00022191,3]
[385434635,1757847047745,-480.0,0.00022191,3]
[385434636,1757847047754,-480.0,0.00022191,3]
[385434637,1757847047763,-480.0,0.00022191,3]
[385434638,1757847047773,-480.0,0.00022191,3]
[385434639,1757847047782,-339.01910237,0.00022191,3]
[385434640,1757847047791,-480.0,0.00022191,3]
[385434641,1757847047801,-480.0,0.00022191,3]
[385434642,1757847047810,-480.0,0.00022191,3]
[385434643,1757847047819,-480.0,0.00022191,3]
[385434644,1757847047828,-480.0,0.00022191,3]
[385434645,1757847047837,-808.99,0.00022191,3]
[385434646,1757847047847,-480.0,0.00022191,3]
[385434647,1757847047856,-480.0,0.00022191,3]
[385434648,1757847047865,-480.0,0.00022191,3]
[385434649,1757847047874,-480.0,0.00022191,3]
[385434650,1757847047885,-482.21828813,0.00022191,3]
[385434651,1757847047895,-480.0,0.00022191,3]
[385434652,1757847047904,-480.0,0.00022191,3]
[385434653,1757847047915,-687.97,0.00022191,3]
[385434654,1757847047924,-480.0,0.00022191,3]
[385434655,1757847047935,-480.0,0.00022191,3]
[385434656,1757847047946,-480.0,0.00022191,3]
[385434657,1757847047956,-480.0,0.00022191,3]
[385434658,1757847047966,-487.57067147,0.00022191,3]
[385434659,1757847047975,-480.0,0.00022191,3]
[385434660,1757847047984,-480.0,0.00022191,3]
[385434661,1757847047993,-480.0,0.00022191,3]
[385434662,1757847048002,-480.0,0.00022191,3]
[385434663,1757847048011,-480.0,0.00022191,3]
[385434664,1757847048021,-480.0,0.00022191,3]
[385434665,1757847048032,-480.0,0.00022191,3]
[385434666,1757847048042,-480.0,0.00022191,3]
[385434667,1757847048052,-480.0,0.00022191,3]
[385434668,1757847048061,-1025.01,0.00022191,3]
[385434669,1757847048071,-480.0,0.00022191,3]
[385434670,1757847048080,-480.0,0.00022191,3]
[385434671,1757847048090,-480.0,0.00022191,3]
[385434672,1757847048100,-480.0,0.00022191,3]
[385434673,1757847048109,-480.0,0.00022191,3]
[385434674,1757847048119,-496.49749978,0.00022191,3]
[385434675,1757847048128,-480.0,0.00022191,3]
[385434676,1757847048137,-690.5,0.00022191,3]
[385434677,1757847048146,-1016.64,0.00022191,3]
[385434678,1757847048156,-480.0,0.00022191,3]
[385434679,1757847048166,-480.0,0.00022191,3]
[385434680,1757847048175,-480.0,0.00022191,3]
[385434681,1757847048184,-480.0,0.00022191,3]
[385434682,1757847048194,-480.0,0.00022191,3]
[385434683,1757847048203,-480.0,0.00022191,3]
[385434684,1757847048213,-480.0,0.00022191,3]
[385434685,1757847048223,-1368.78,0.00022191,3]
[385434686,1757847048232,-480.0,0.00022191,3]
[385434687,1757847048241,-480.0,0.00022191,3]
[385434688,1757847048250,-480.0,0.00022191,3]
[385434689,1757847048260,-936.39,0.00022191,3]
[385434690,1757847048270,-666.38,0.00022191,3]
[385434691,1757847048279,-481.79356785,0.00022191,3]
[385434692,1757847048288,-480.0,0.00022191,3]
[385434693,1757847048297,-544.42,0.00022191,3]
[385434694,1757847048307,-480.0,0.00022191,3]
[385434695,1757847048316,-480.0,0.00022191,3]
[385434696,1757847048326,-480.0,0.00022191,3]
[385434697,1757847048335,-480.0,0.00022191,3]
[385434698,1757847048345,-667.44,0.00022191,3]
[385434699,1757847048354,-1258.04,0.00022191,3]
[385434700,1757847048364,-480.0,0.00022191,3]
[385434701,1757847048373,-480.0,0.00022191,3]
[385434702,1757847048382,-480.0,0.00022191,3]
[385434703,1757847048391,-565.34,0.00022191,3]
[385434704,1757847048406,-480.0,0.00022191,3]
[385434705,1757847048415,-330.89036688,0.00022191,3]
[385434706,1757847048425,-480.0,0.00022191,3]
[385434707,1757847048434,-1288.99,0.00022191,3]
[385434708,1757847048443,-551.33,0.00022191,3]
[385434709,1757847048452,-480.0,0.00022191,3]
[385434710,1757847048463,-480.0,0.00022191,3]
[385434711,1757847048472,-480.0,0.00022191,3]
[385434712,1757847048482,-480.0,0.00022191,3]
[385434713,1757847048491,-1380.36,0.00022191,3]
[385434714,1757847048501,-483.14983147,0.00022191,3]
[385434715,1757847048511,-480.0,0.00022191,3]
[385434716,1757847048520,-480.0,0.00022191,3]
[385434717,1757847048530,-480.0,0.00022191,3]
[385434718,1757847048539,-480.0,0.00022191,3]
[385434719,1757847048549,-480.0,0.00022191,3]
[385434720,1757847048558,-480.0,0.00022191,3]
[385434721,1757847048567,-480.0,0.00022191,3]
[385434722,1757847048577,-557.13594245,0.00022191,3]
[385434723,1757847048586,-846.21,0.00022191,3]
[385434724,1757847048595,-480.0,0.00022191,3]
[385434725,1757847048605,-723.75,0.00022191,3]
[385434726,1757847048614,-480.0,0.00022191,3]
[385434727,1757847048623,-893.09,0.00022191,3]
[385434728,1757847048633,-499.66,0.00022191,3]
[385434729,1757847048643,-894.71,0.00022191,3]
[385434730,1757847048652,-481.20841161,0.00022191,3]
[385434731,1757847048661,-480.0,0.00022191,3]
[385434732,1757847048670,-480.0,0.00022191,3]
[385434733,1757847048680,-480.0,0.00022191,3]
[385434734,1757847048691,-480.0,0.00022191,3]
[385434735,1757847048700,-481.95685399,0.00022191,3]
[385434736,1757847048711,-750.32,0.00022191,3]
[385434737,1757847048720,-480.0,0.00022191,3]
[385434738,1757847048729,-648.31,0.00022191,3]
[385434739,1757847048738,-480.0,0.00022191,3]
[385434740,1757847048748,-480.0,0.00022191,3]
[385434741,1757847048757,-483.12566247,0.00022191,3]
[385434742,1757847048766,-571.62686111,0.00022191,3]
[385434743,1757847048776,-480.0,0.00022191,3]
[385434744,1757847048785,-480.0,0.00022191,3]
[385434745,1757847048794,-480.0,0.00022191,3]
[385434746,1757847048803,-480.0,0.00022191,3]
[385434747,1757847048813,-417.01339898,0.00022191,3]
[385434748,1757847048823,-480.0,0.00022191,3]
[385434749,1757847048833,-480.0,0.00022191,3]
[385434750,1757847048843,-476.70318431,0.00022191,3]
[385434751,1757847048852,-482.70033551,0.00022191,3]
[385434752,1757847048862,-728.38,0.00022191,3]
[385434753,1757847048871,-480.0,0.00022191,3]
[385434754,1757847048880,-480.0,0.00022191,3]
[385434755,1757847048889,-480.0,0.00022191,3]
[385434756,1757847048899,-1003.85,0.00022191,3]
[385434757,1757847048908,-480.0,0.00022191,3]
[385434758,1757847048918,-482.93811442,0.00022191,3]
[385434759,1757847048928,-2478.43,0.00022191,3]
[385434760,1757847048937,-1061.43,0.00022191,3]
[385434761,1757847048946,-503.84656703,0.00022191,3]
[385434762,1757847048956,-480.0,0.00022191,3]
[385434763,1757847048966,-480.0,0.00022191,3]
[385434764,1757847048976,-1247.64,0.00022191,3]
[385434765,1757847048985,-482.08553901,0.00022191,3]
[385434766,1757847048994,-480.0,0.00022191,3]
[385434767,1757847049004,-480.0,0.00022191,3]
[385434768,1757847049014,-1035.36,0.00022191,3]
[385434769,1757847049028,-480.0,0.00022191,3]
[385434770,1757847049038,-480.0,0.00022191,3]
[385434771,1757847049047,-1342.3,0.00022191,3]
[385434772,1757847049057,-480.0,0.00022191,3]
[385434773,1757847049067,-480.0,0.00022191,3]
[385434774,1757847049077,-482.0328333,0.00022191,3]
[385434775,1757847049088,-480.0,0.00022191,3]
[385434776,1757847049098,-480.0,0.00022191,3]
[385434777,1757847049108,-480.0,0.00022191,3]
[385434778,1757847049119,-1083.54,0.00022191,3]
[385434779,1757847049128,-6258.65,0.00022191,3]
[385434780,1757847049139,-482.14013962,0.00022191,3]
[385434781,1757847049149,-1047.27,0.00022191,3]
[385434782,1757847049158,-689.3,0.00022191,3]
[385434783,1757847049168,-480.0,0.00022191,3]
[385434784,1757847049178,-480.0,0.00022191,3]
[385434785,1757847049187,-460.80676862,0.00022191,3]
[385434786,1757847049197,-480.0,0.00022191,3]
[385434787,1757847049207,-480.0,0.00022191,3]
[385434788,1757847049217,-480.0,0.00022191,3]
[385434789,1757847049227,-1562.82,0.00022191,3]
[385434790,1757847049236,-2933.76,0.00022191,3]
[385434791,1757847049245,-480.0,0.00022191,3]
[385434792,1757847049255,-480.0,0.00022191,3]
[385434793,1757847049264,-480.0,0.00022191,3]
[385434794,1757847049273,-480.0,0.00022191,3]
[385434795,1757847049282,-3464.17,0.00022191,3]
[385434796,1757847049292,-480.0,0.00022191,3]
[385434797,1757847049301,-598.87,0.00022191,3]
[385434798,1757847049311,-480.0,0.00022191,3]
[385434799,1757847049320,-550.62,0.00022191,3]
[385434800,1757847049329,-788.82,0.00022191,3]
[385434801,1757847049338,-480.0,0.00022191,3]
[385434802,1757847049347,-430.42,0.00022191,2]
[385434803,1757847049357,-480.0,0.00022191,3]
[385434804,1757847049366,-480.0,0.00022191,3]
[385434805,1757847049375,-480.0,0.00022191,3]
[385434806,1757847049384,-480.0,0.00022191,3]
[385434807,1757847049393,-1534.77,0.00022191,3]
[385434808,1757847049402,-1256.64,0.00022191,3]
[385434809,1757847049411,-638.54,0.00022191,3]
[385434810,1757847049546,-687.67,0.00022191,3]
[385434811,1757847049556,-539.46,0.00022191,3]
[385434812,1757847049566,-480.0,0.00022191,3]
[385434813,1757847049576,-815.55,0.00022191,3]
[385434814,1757847049587,-29194.18949241,0.00022191,3]
[385434815,1757847049773,-1155.50693701,0.00022191,3]
[385434816,1757847049876,-419.08357058,0.00022191,3]
[385434817,1757847049885,-480.0,0.00022191,3]
[385434818,1757847049894,-1775.55,0.00022191,3]
[385434819,1757847049903,-949.06,0.00022191,3]
[385434820,1757847049912,-1383.6,0.00022191,3]
[385434821,1757847049921,-1538.45,0.00022191,3]
[385434822,1757847049930,-480.0,0.00022191,3]
[385434823,1757847049939,-480.0,0.00022191,3]
[385434824,1757847049948,-480.0,0.00022191,3]
[385434825,1757847049958,-480.61943364,0.00022191,3]
[385434826,1757847049967,-7021.87593909,0.00022191,3]
[385434827,1757847049978,-497.12993466,0.00022191,3]
[385434828,1757847049990,-549.78412625,0.00022191,3]
[385434829,1757847049999,-121.9952421,0.00022191,3]
[385434830,1757847050260,-265.35983074,0.00022191,3]
[385434831,1757847050272,-96.60942517,0.00022191,3]
[385434832,1757847050282,-488.14226077,0.00022191,3]
[385434833,1757847050291,-680.89,0.00022191,3]
[385434834,1757847050300,-553.55,0.00022191,3]
[385434835,1757847050309,-914.53,0.00022191,3]
[385434836,1757847050318,-918.99,0.00022191,3]
[385434837,1757847050328,-3748.84,0.00022191,3]
[385434838,1757847050337,-480.0,0.00022191,3]
[385434839,1757847050347,-480.0,0.00022191,3]
[385434840,1757847050356,-482.65425507,0.00022191,3]
[385434841,1757847050365,-3096.22,0.00022191,3]
[385434842,1757847050375,-1019.33,0.00022191,3]
[385434843,1757847050385,-597.94,0.00022191,3]
[385434844,1757847050394,-480.0,0.00022191,3]
[385434845,1757847050403,-480.0,0.00022191,3]
[385434846,1757847050412,-989.45,0.00022191,3]
[385434847,1757847050424,-1688.37,0.00022191,3]
[385434848,1757847050433,-1360.54812551,0.00022191,3]
[385434849,1757847050562,10000.01,0.00021817,3]
[385434850,1757847050583,10000.01,0.00021817,3]
[385434851,1757847050604,8389.41940601,0.00021817,3]
[385434852,1757847050718,-223.50187449,0.00022191,3]
[385434853,1757847050728,-480.0,0.00022191,3]
[385434854,1757847050738,-1102.07,0.00022191,3]
[385434855,1757847050752,-1154.27,0.00022191,3]
[385434856,1757847050768,-480.0,0.00022191,3]
[385434857,1757847050777,-895.14,0.00022191,3]
[385434858,1757847050786,-3365.81,0.00022191,3]
[385434859,1757847050795,-1642.2,0.00022191,3]
[385434860,1757847050806,-480.0,0.00022191,3]
[385434861,1757847050815,-480.0,0.00022191,3]
[385434862,1757847050824,-803.43,0.00022191,3]
[385434863,1757847050833,-494.26240767,0.00022191,3]
[385434864,1757847050842,-480.0,0.00022191,3]
[385434865,1757847050851,-2488.03,0.00022191,3]
[385434866,1757847050860,-480.0,0.00022191,3]
[385434867,1757847050870,-1025.46891491,0.00022191,3]
[385434868,1757847050881,-2087.82777826,0.00022191,3]
[385434869,1757847050897,-1343.06330683,0.00022191,3]
[385434870,1757847050907,-480.0,0.00022191,3]
[385434871,1757847050919,-882.85298668,0.00022191,3]
[385434872,1757847051177,-2038.63701332,0.00022191,3]
[385434873,1757847051187,-480.0,0.00022191,3]
[385434874,1757847051198,-480.0,0.00022191,3]
[385434875,1757847051207,-486.0521817,0.00022191,3]
[385434876,1757847051218,-480.0,0.00022191,3]
[385434877,1757847051227,-480.0,0.00022191,3]
[385434878,1757847051236,-973.61531296,0.00022191,3]
[385434879,1757847062634,500.0,0.00021172,2]
[385434880,1757847062661,306.68975511,0.00021184,2]
[385434881,1757847062687,500.0,0.00021172,2]
[385434882,1757847062713,303.90083888,0.00021172,2]
[385434883,1757847062735,196.09916112,0.00021172,2]
[385434884,1757847062759,478.41874551,0.00021172,2]
[385434885,1757847062792,500.0,0.00021172,2]
[385434886,1757847062817,499.63729434,0.00021172,2]
[385434887,1757847063135,300.0,0.00021916,2]
[385434888,1757847064071,500.0,0.00021173,2]
[385434889,1757847064278,500.0,0.00021173,2]
[385434890,1757847068650,160.0,0.00021208,3]
[385434891,1757847080446,168.66639457,0.00021184,2]
[385434892,1757847080872,417.88958938,0.00021172,2]
[385434893,1757847081053,500.0,0.00021172,2]
[385434894,1757847081106,500.0,0.00021172,2]
[385434895,1757847081163,500.0,0.00021172,2]
[385434896,1757847081215,441.81485903,0.00021172,2]
[385434897,1757847091303,400.0,0.00021184,2]
[385434898,1757847091333,500.0,0.00021184,2]
[385434899,1757847098880,500.0,0.00021172,2]
[385434900,1757847098932,500.0,0.00021172,2]
[385434901,1757847098997,500.0,0.00021172,2]
[385434902,1757847102864,1937.48395605,0.00021917,2]
[385434903,1757847102886,10000.01,0.00021917,2]
[385434904,1757847102908,10000.01,0.00021917,2]
[385434905,1757847102929,10000.01,0.00021917,2]
[385434906,1757847102950,10000.01,0.00021917,2]
[385434907,1757847102971,8062.47604395,0.00021917,2]
[385434908,1757847112010,500.0,0.00021172,2]
[385434909,1757847112599,1437.53395605,0.00021085,2]
[385434910,1757847112621,10000.01,0.00021085,2]
[385434911,1757847112643,10000.01,0.00021085,2]
[385434912,1757847112665,10000.01,0.00021085,2]
[385434913,1757847112686,10000.01,0.00021085,2]
[385434914,1757847112707,10000.01,0.00021085,2]
[385434915,1757847112729,10000.01,0.00021085,2]
[385434916,1757847112750,10000.01,0.00021085,2]
[385434917,1757847112773,10000.01,0.00021085,2]
[385434918,1757847112794,10000.01,0.00021085,2]
[385434919,1757847122853,-300.0,0.00021084,2]
[385434920,1757847138295,2184.03094092,0.000199,2]
[385434922,1757847153847,310.89919948,0.00021084,2]
[385434923,1757847153877,500.0,0.00021084,2]
[385434924,1757847153908,500.0,0.00021084,2]
[385434925,1757847154117,234.27326923,0.00021084,2]
[385434926,1757847154146,500.0,0.00021084,2]
[385434927,1757847154173,500.0,0.00021084,2]
[385434928,1757847154208,500.0,0.00021084,2]
[385434929,1757847154245,500.0,0.00021084,2]
[385434930,1757847154294,500.0,0.00021084,2]
[385434931,1757847154367,500.0,0.00021084,2]
[385434932,1757847154447,500.0,0.00021084,2]
[385434933,1757847154557,500.0,0.00021084,2]
[385434934,1757847154584,500.0,0.00021084,2]
[385434935,1757847154615,500.0,0.00021084,2]
[385434936,1757847154662,500.0,0.00021084,2]
[385434937,1757847154717,170.80659037,0.00021084,2]
[385434938,1757847154739,44.95061619,0.00021084,2]
[385434939,1757847154808,500.0,0.00021084,2]
[385434940,1757847155309,627.39931386,0.00021084,2]
[385434941,1757847155430,500.0,0.00021084,2]
[385434942,1757847171394,500.0,0.00021084,2]
[385434943,1757847171601,500.0,0.00021084,2]
[385434944,1757847171690,450.0,0.00021084,2]
[385434945,1757847171857,500.0,0.00021084,2]
[385434946,1757847180474,168.0,0.00021003,2]
[385434948,1757847182758,300.0,0.00021084,2]
[385434952,1757847193073,-168.0,0.00021005,2]
[385434953,1757847204436,168.66639457,0.00021084,2]
[385434954,1757847243092,300.0,0.00021084,2]
[385434959,1757847289755,29000.0,0.0002,120]
[385434962,1757847298382,200.88149034,0.00021049,2]
[385434963,1757847302577,300.0,0.00021084,2]
[385434964,1757847303211,1200.0,0.00021084,2]
[385434965,1757847303271,7494.46211509,0.00020825,2]
[385434966,1757847303297,10000.01,0.00020825,2]
[385434967,1757847303322,3761.66737391,0.00020825,2]
[385434968,1757847304349,813.47,0.00021075,3]
[385434969,1757847315168,406.74,0.00021075,3]
[385434970,1757847315785,168.66639457,0.00021084,2]
[385434971,1757847319566,2946.64703841,0.000199,2]
[385434972,1757847326015,203.37,0.00021075,3]
[385434973,1757847335359,1699.44919311,0.00021085,2]
[385434974,1757847335382,8300.55080689,0.00021085,2]
[385434977,1757847336637,610.11,0.00021075,3]